Cogmind - Beta 11.2 @@@ ROGUE MODE // 2023.01.01 @ 09:55:59 Player: ChromeKnight Result: Destroyed by G-34 Mercenary with Small Laser Performance ------------- Evolutions (0) 0 Regions Visited (4) 800 Robots Destroyed (31) 155 Value Destroyed (574) 574 Prototype IDs (0) 0 Alien Tech Used (0) 0 Bonus (0) 0 TOTAL SCORE: 1529 Bonus ------- None Cogmind --------- Core Integrity 0/250 Matter 293/300 Energy 100/100 System Corruption 0% Temperature Cool (6) Movement Core (50) Location -9/Mines Parts ------- > --- POWER (1) -------- (None) > --- PROPULSION (2) --- (None) > --- UTILITY (2) ------ (None) > --- WEAPON (2) ------- (None) > --- INVENTORY (5) ---- Compact Matter Pod (150) Hacking Suite Hacking Suite Hammer Heavy Explosive Trap Peak State ------------ > --- POWER ------------ Ion Engine > --- PROPULSION ------- Aluminum Leg Aluminum Leg > --- UTILITY ---------- Improved Heat Sink Medium Storage Unit > --- WEAPON ----------- Small Laser Small Laser > --- INVENTORY -------- Ion Engine Aluminum Leg Flight Unit Flight Unit Flight Unit Machine Analyzer Propulsion Shielding Hacking Suite Hacking Suite Hammer [Rating: 10] Favorites ----------- Power Ion Engine Engine Ion Engine Propulsion Aluminum Leg Leg Aluminum Leg Utility Improved Heat Sink Device Improved Heat Sink Storage Medium Storage Unit Protection Propulsion Shielding Weapon Small Laser Energy Gun Small Laser Ballistic Gun Assault Rifle Build | -11 -10 -10 -10 -9 ------- Run | Scr Mat Min Exi Min Slots Evolved . | . . . . . Power . | . . . . . Propulsion . | . . . . . Utility . | . . . . . Weapon . | . . . . . Parts Attached 26 | 6 16 1 . 3 Power 4 | 1 3 . . . Engine 4 | 1 3 . . . Core . | . . . . . Reactor . | . . . . . Propulsion 8 | 2 5 1 . . Treads . | . . . . . Leg 8 | 2 5 1 . . Wheel . | . . . . . Hover . | . . . . . Flight . | . . . . . Utility 6 | 1 4 . . 1 Device 3 | . 3 . . . Storage 2 | 1 1 . . . Processor . | . . . . . Hackware . | . . . . . Protection 1 | . . . . 1 Artifact . | . . . . . Weapon 8 | 2 4 . . 2 Energy Gun 5 | 2 3 . . . Energy Cannon . | . . . . . Ballistic Gun 3 | . 1 . . 2 Ballistic Cannon . | . . . . . Launcher . | . . . . . Special Weapon . | . . . . . Impact Weapon . | . . . . . Slashing Weapon . | . . . . . Piercing Weapon . | . . . . . Special Melee Weapon . | . . . . . Unidentified Prototypes . | . . . . . Parts Lost 8 | . 7 . . 1 Power 1 | . 1 . . . Propulsion 3 | . 2 . . 1 Utility 1 | . 1 . . . Weapon 3 | . 3 . . . Highest Loss Streak 5 | . 5 . . 1 To Critical Strikes . | . . . . . Average Slot Usage (%) 95 | . 89 100 100 98 Engine 13 | . 13 14 14 14 Leg 27 | . 27 28 28 26 Device 12 | . 11 14 14 7 Storage 14 | . 14 14 14 14 Energy Gun 22 | . 16 28 28 6 Ballistic Gun 3 | . 4 . . 21 Naked Turns 3 | . . . . 3 Heaviest Build 18 | 13 18 18 18 18 Greatest Support 20 | 20 20 20 20 20 Greatest Overweight (x) 1 | . . . . 1 Average Overweight (x) . | . . . . . Largest Inventory Capacity 10 | 8 10 10 10 10 Average Capacity 9 | 6 8 10 10 9 Most Carried 10 | . 10 10 10 10 Average Carried 8 | . 6 9 10 9 Final Capacity 10 | 8 10 10 10 5 Final Carried 10 | . 10 10 10 5 Class Distribution -------------------- 84% | Scavenger-Mutant 15% | Mutant Dominant Class ---------------- Scavenger-Mutant | -10/Materials Scavenger-Mutant | -10/Mines Scavenger-Mutant | -10/Exiles Scavenger-Mutant | -9/Mines Resources | -11 -10 -10 -10 -9 ----------- Run | Scr Mat Min Exi Min Matter Collected 543 | 260 253 10 . 20 Remotely . | . . . . . Salvage Created 816 | . 626 142 . 48 Parts 63 | . 45 13 . 5 Haulers Intercepted 1 | . 1 . . . Recyclers Shooed . | . . . . . Parts Field Recycled . | . . . . . Retrieved Matter . | . . . . . Parts Self-Destructed . | . . . . . Prevented . | . . . . . Kills | -11 -10 -10 -10 -9 ------- Run | Scr Mat Min Exi Min Combat Hostiles Destroyed 22 | . 13 6 . 3 Guns 22 | . 13 6 . 3 Classes Destroyed 8 | . 6 2 . . Worker 2 | . . 2 . . Tunneler 1 | . . 1 . . Hauler 1 | . 1 . . . Mechanic 1 | . 1 . . . Operator 3 | . 3 . . . Watcher 1 | . 1 . . . Swarmer 12 | . 3 6 . 3 Grunt 10 | . 10 . . . Best Kill Streak 3 | . 3 3 . 3 Combat Bots Only 3 | . 3 3 . 3 Max Kills in Single Turn 2 | . 2 1 . 1 Gunslinging . | . . . . . Exploded . | . . . . . Melee . | . . . . . Uniques/NPCs Destroyed . | . . . . . Combat | -11 -10 -10 -10 -9 -------- Run | Scr Mat Min Exi Min Damage Taken 1238 | . 853 91 . 294 Core 257 | . 155 9 . 93 Absorbed by Shields . | . . . . . Redirected to Shielding 13 | . . . . 13 Core Remaining (%) 100 | 100 . . . . Volleys Fired 96 | . 77 12 . 7 Largest 2 | . 2 2 . 2 Hottest 80 | . 80 80 . 80 Shots Fired 153 | . 115 24 . 14 Gun 153 | . 115 24 . 14 Cannon . | . . . . . Launcher . | . . . . . Special . | . . . . . Kinetic 43 | . 41 . . 2 Thermal 99 | . 63 24 . 12 Explosive . | . . . . . Electromagnetic 11 | . 11 . . . Robot Hit Streak 11 | . 11 6 . 6 Robot Miss Streak 4 | . 3 3 . 4 Penetration Max . | . . . . . Secondary Targets 3 | . 1 . . 2 Max Gunslinging Chain 1 | . 1 . . 1 Shots Hit Robots 106 | . 84 13 . 9 Core Hits 43 | . 31 9 . 3 Critical Kills . | . . . . . Critical Parts Destroyed . | . . . . . Critical Strikes . | . . . . . Melee Attacks . | . . . . . Impact . | . . . . . Slashing . | . . . . . Piercing . | . . . . . Sneak Attacks . | . . . . . Combat Hostiles . | . . . . . Follow-up Attacks . | . . . . . Damage Inflicted 1252 | . 1005 146 . 101 Guns 1252 | . 1005 146 . 101 Cannons . | . . . . . Explosions . | . . . . . Melee . | . . . . . Ramming . | . . . . . Kinetic 373 | . 358 . . 15 Thermal 753 | . 521 146 . 86 Explosive . | . . . . . Electromagnetic 126 | . 126 . . . Impact . | . . . . . Slashing . | . . . . . Piercing . | . . . . . Highest Corruption . | . . . . . Average Corruption . | . . . . . Corruption Purged . | . . . . . Corruption Blocked . | . . . . . Overload Shots . | . . . . . Overflow Damage . | . . . . . Projectiles . | . . . . . Explosions . | . . . . . Melee . | . . . . . Knockbacks . | . . . . . Impact . | . . . . . Kinetic . | . . . . . Secondary . | . . . . . Self-Inflicted Damage . | . . . . . Shots . | . . . . . Rammed . | . . . . . Targets Rammed . | . . . . . Kicked . | . . . . . Crushed . | . . . . . Highest Temperature 120 | . 120 . . . Average Temperature 33 | . 33 . . . Received Heat Transfer 591 | . 543 . . 48 Siege Activations . | . . . . . Robots Corrupted . | . . . . . Combat Hostiles . | . . . . . Parts Fried . | . . . . . Impact Corruptions . | . . . . . Robots Melted . | . . . . . Combat Hostiles . | . . . . . Parts Melted 2 | . 2 . . . Heat Transferred 1725 | . 1200 325 . 200 Parts Sabotaged . | . . . . . Parts Stolen . | . . . . . Parts Stripped . | . . . . . Power Chain Reactions . | . . . . . Missiles Intercepted . | . . . . . Alert | -11 -10 -10 -10 -9 ------- Run | Scr Mat Min Exi Min Peak Influence 319 | . 319 118 . 70 Initial 28 | . . 28 . . Average 104 | . 145 76 . 60 Maximum Alert Level 1 | . 1 . . . Low Security (%) 87 | 100 72 100 . 100 Level 1 12 | . 27 . . . Level 2 . | . . . . . Level 3 . | . . . . . Level 4 . | . . . . . Level 5 . | . . . . . High Security . | . . . . . Max Security . | . . . . . Squads Dispatched 3 | . 3 . . . Investigation . | . . . . . Extermination . | . . . . . Reinforcement 3 | . 3 . . . Assault . | . . . . . Garrison . | . . . . . Intercept . | . . . . . Searches Triggered . | . . . . . Construction Impeded . | . . . . . Haulers Reinforced . | . . . . . Active Scanning Responses . | . . . . . Cargo Convoy Interrupts . | . . . . . Stealth | -11 -10 -10 -10 -9 --------- Run | Scr Mat Min Exi Min Distress Signals 4 | . 4 . . . Communications Jammed . | . . . . . Distress Signals . | . . . . . Times Spotted 49 | . 37 6 . 6 Peak Tracking Total 5 | . 5 3 . 3 Tactical Retreats 4 | . 4 . . . Traps | -11 -10 -10 -10 -9 ------- Run | Scr Mat Min Exi Min Traps Triggered . | . . . . . Indirectly . | . . . . . Trap Hack Attempts . | . . . . . Triggered . | . . . . . Disarmed . | . . . . . Reprogrammed . | . . . . . Reused . | . . . . . Traps Extracted . | . . . . . Installed 1 | . . . . 1 Triggered . | . . . . . Most Traps Carried 4 | . . 4 4 4 Machines | -11 -10 -10 -10 -9 ---------- Run | Scr Mat Min Exi Min Machines Disabled . | . . . . . Max in Single Turn . | . . . . . Machines Sabotaged . | . . . . . Garrisons Compromised . | . . . . . Overloaded Fab Kills . | . . . . . Hacking | -11 -10 -10 -10 -9 --------- Run | Scr Mat Min Exi Min Machines Accessed 3 | . 2 1 . . Terminals 3 | . 2 1 . . Fabricators . | . . . . . Repair Stations . | . . . . . Recycling Units . | . . . . . Scanalyzers . | . . . . . Garrison Access . | . . . . . Total Hacks 6 | . 4 2 . . Successful 4 | . 3 1 . . Failed 2 | . 1 1 . . Catastrophic 1 | . . 1 . . Database Lockouts . | . . . . . Manual 3 | . 3 . . . Terminals 6 | . 4 2 . . Fabricators . | . . . . . Repair Stations . | . . . . . Recycling Units . | . . . . . Scanalyzers . | . . . . . Garrison Access . | . . . . . Terminal Hacks 2 | . 1 1 . . Zone Layout 2 | . 1 1 . . Fabricator Hacks . | . . . . . Repair Station Hacks . | . . . . . Recycling Unit Hacks . | . . . . . Scanalyzer . | . . . . . Garrison Access Hacks . | . . . . . Unauthorized Hacks 2 | . 2 . . . Terminals 2 | . 2 . . . Botnet 1 | . 1 . . . Operators 1 | . 1 . . . Fabricators . | . . . . . Repair Stations . | . . . . . Recycling Units . | . . . . . Scanalyzers . | . . . . . Garrison Access . | . . . . . Data Cores Recovered . | . . . . . Used . | . . . . . Hacking Detections 3 | . 2 1 . . Full Trace Events 1 | . . 1 . . Feedback Events . | . . . . . Feedback Blocked . | . . . . . Robot Schematics Acquired . | . . . . . Robots Built . | . . . . . Authchips . | . . . . . Time . | . . . . . Total Robot Build Rating . | . . . . . Part Schematics Acquired . | . . . . . Parts Built . | . . . . . Authchips . | . . . . . Time . | . . . . . Total Part Build Rating . | . . . . . Parts Repaired . | . . . . . Time . | . . . . . Parts Recycled . | . . . . . Recycled Matter . | . . . . . Retrieved Matter . | . . . . . Retrieved Components . | . . . . . Parts Scanalyzed . | . . . . . Part Schematics Acquired . | . . . . . Parts Damaged . | . . . . . Bothacking | -11 -10 -10 -10 -9 ------------ Run | Scr Mat Min Exi Min Used RIF Installer . | . . . . . Robots Hacked . | . . . . . Non-combat . | . . . . . Combat . | . . . . . Robot Hacks Applied . | . . . . . Relay Couplers Released . | . . . . . Fabnet Peak Effective % . | . . . . . Robots Rewired . | . . . . . Allies Hacked . | . . . . . Hacks Repelled . | . . . . . Allies | -11 -10 -10 -10 -9 -------- Run | Scr Mat Min Exi Min Total Allies . | . . . . . Largest Group . | . . . . . Highest-Rated Group . | . . . . . Highest-Rated Ally . | . . . . . Total Orders . | . . . . . Ally Attacks . | . . . . . Total Damage . | . . . . . Kills . | . . . . . Allies Corrupted . | . . . . . Allies Melted . | . . . . . Intel | -11 -10 -10 -10 -9 ------- Run | Scr Mat Min Exi Min Robot Analysis Total . | . . . . . Derelict Logs Recovered 2 | . . 2 . . Drone Launches . | . . . . . Drone Recoveries . | . . . . . Exploration | -11 -10 -10 -10 -9 ------------- Run | Scr Mat Min Exi Min Turns Passed 1915 | 52 816 851 101 95 Spaces Moved 1175 | 42 333 669 85 46 Core 16 | 10 . . . 6 Treads . | . . . . . Legs 1159 | 32 333 669 85 40 Wheels . | . . . . . Hover . | . . . . . Flight . | . . . . . Fastest Speed 50 | 50 120 120 120 50 Average Speed 119 | 103 120 120 120 116 Slowest Speed 190 | 120 120 120 120 190 Overloaded Moves . | . . . . . Propulsion Burnouts . | . . . . . Robots Hopped . | . . . . . Cave-ins Triggered . | . . . . . Exploration Rate (%) 37 | 3 63 96 18 8 Regions Visited 4 Branch Regions 3 Pre-discovered Areas 2 | . . 2 . . Known Exits Taken . | . . . . . Unknown Exits Taken 4 | 1 1 1 1 . Scrap Searched 1 | . . 1 . . Spaces Dug . | . . . . . Terrain Destroyed . | . . . . . Melee . | . . . . . Projectile . | . . . . . AOE . | . . . . . Terrain Rammed . | . . . . . Walls Destroyed . | . . . . . Machines Disabled . | . . . . . Actions | -11 -10 -10 -10 -9 --------- Run | Scr Mat Min Exi Min Total 1533 | 47 633 695 84 74 Wait 200 | . 183 4 . 13 Move 1171 | 41 332 668 84 46 Hop . | . . . . . Pick Up 16 | . 11 5 . . Fast Attach 13 | 6 5 . . 2 Attach 4 | . 3 . . 1 Detach . | . . . . . Swap 9 | . 8 1 . . Drop 15 | . 6 5 . 4 Fire 96 | . 77 12 . 7 Melee . | . . . . . Ram . | . . . . . Kick . | . . . . . Crush . | . . . . . Escape Stasis . | . . . . . Rewire 8 | . 8 . . . Trap 1 | . . . . 1 Miscellaneous . | . . . . . Route ------- -11/Scrapyard -10/Materials (discovered 3 exits: [*Mat x2] / *Min) -10/Mines (discovered 3 exits: [*Mat x2] / [*Exi]) -10/Exiles -9/Mines History --------- Turn | Location | Event 4 | -11/Scrapyard | Discovered new exit (range 15) 53 | -11/Scrapyard | Entered Materials 189 | -10/Materials | Discovered new exit (range 5) 335 | -10/Materials | Discovered new exit (range 10) 473 | -10/Materials | Discovered new exit (range 15) 560 | -10/Materials | Core integrity fell below 50% 599 | -10/Materials | Lost 5 parts (1p2n2w) 611 | -10/Materials | Build established: Scavenger-Mutant 869 | -10/Materials | Entered Mines 873 | -10/Mines | Met a Derelict bent on vengeance 936 | -10/Mines | Learned location of Recycling (-9) 939 | -10/Mines | Discovered new exit (range 11) 1043 | -10/Mines | Learned location of Zion (-6) 1188 | -10/Mines | Discovered new exit (range 8) 1484 | -10/Mines | Found a hidden stash of uninstalled traps 1715 | -10/Mines | Deemed a non-threat by the Exiles lab entrance 1715 | -10/Mines | Discovered new exit (range 5) 1720 | -10/Mines | Entered Exiles 1750 | -10/Exiles | Met 8R-AWN 1771 | -10/Exiles | Met EX-HEX 1802 | -10/Exiles | Discovered new exit (range 15) 1821 | -10/Exiles | Entered Mines 1911 | -9/Mines | Core integrity fell below 20% 1913 | -9/Mines | Released all parts (6) 1916 | -9/Mines | Destroyed by G-34 Mercenary with Small Laser Last Messages --------------- 01827_ Destroyed Flight Unit. 01830_ S-10 Pest destroyed. 01830_ Switching to secondary target: S-10 Pest. 01833_ S-10 Pest destroyed. 01833_ Switching to secondary target: S-10 Pest. 01836_ S-10 Pest destroyed. 01844_ Dropped Sml. Laser. 01845_ Acquired Lgt. Assault Rifle. 01847_ Acquired 10 matter. 01849_ Acquired Lgt. Assault Rifle. 01851_ Acquired 10 matter. 01873_ Dropped Imp. Heat Sink. 01902_ Aluminum Leg destroyed. 01906_ Dropped Heavy Explosive Trap. 01906_ Installed Heavy Explosive Trap. 01913_ Released Propulsion Shielding. 01913_ Released Ion Engine. 01913_ Released Med. Storage Unit. 01913_ Released Aluminum Leg. 01913_ Released Lgt. Assault Rifle. Map ----- +----------------------------------------------------+ | ?????????????????????#* #??????????? | | ?????????????????????# #??????????? | | ?????????????????????# #??????????? | | ?????????????????????# #??????????? | | ?????????????????????#### ##??????????? | | ????????????????????????# #???????????? | | ????????????????????????# #???????????? | | ????????????????????????# #???????????? | | ????????????????????????# #???????????? | | ????????????????????????# #???????????? | | ????????????????????????# #???????????? | | ????????????????????????# #???????????? | | ????????????????????????# #???????????? | | ????????????????????????# #???????????? | | ????????????????????????# !#???????????? | | ??????????????????????### #???????????? | | ?????????????????????## #???????????? | | ?????????????????????# ##??????????? | | ?????????????????????# [&[#??????????? | | ?????????????????????# *!&#??????????? | | ?????????????????????# =! #??????????? | | ?????????????????????# l! #??????????? | | ?????????????????????## ^#??????????? | | ??????????????????????## #??????????? | | ???????????????????????#g g##??????????? | | ???????????????????????# @ #???????????? | | ???????????????????? #???????????? | | ???????????????? #??????????? | | ???????????????######### #??????????? | | ???????????????????????## #??????????? | | ????????????????????????## #??????????? | | ?????????????????????????# #??????????? | | ????????????????????????? ??????????? | | ????????????????????????? ??????????? | | ????????????????????????? ?????????? | | ????????????????????????? ?????????? | | ?????????????????????????? ????????? | | ??????????????????????????? ????????? | | ??????????????????????????? ????????? | | ??????????????????????????? ?????????? | | ??????????????????????????? ???????????? | | ???????????????????????????????????????? | | ???????????????????????????????????????? | | ???????????????????????????????????????? | | ???????????????????????????????????????? | | ???????????????????????????????????????? | | ???????????????????????????????????????? | | ???????????????????????????????????????? | | ???????????????????????????????????????? | | ???????????????????????????????????????? | +----------------------------------------------------+ Best States ------------- Heat Dissipation 39 Energy Generation 10 Energy Capacity 250 Matter Stores 300 Matter Capacity 300 Sight Range 16 Terrain Scan Density 10 Propulsion Shielding 33 Evasion (%) 55 Item Schematics ----------------- None Robot Schematics ------------------ None Fabricated ------------ Nothing Alien Tech Used ----------------- None Achievements -------------- None Challenges ------------ None Game ------ Seed MicroElectronInitializer Manual? 0 Play Time 00:07:50 Cumulative 383.9 hours Start 2023.01.01 @ 09:48:52 End 2023.01.01 @ 09:55:59 Sessions 1 Manual Loads 0 Difficulty Rogue Special Mode None Game No. 687 Rogue 532 Adventurer 148 Explorer 7 Win Type - Total 15 Types 13/0/1/1/0/0/0/0/0 Lore% 78 Gallery% 88 Achievement% 72 Wizard Run 0 Options --------- ASCII 0 Keyboard 0 Movement Numpad Keybinds 0 Fullscreen 2 Font 18/SmallcapsGlow Map View 76x50 Tactical HUD 1 Map Filters NONE Filters NONE Steam 1 RUN: 7711f553-b552-4fb3-b7c6-108a92e89d82